[Event "ROU-chT 1st League 2019"]
[Site "Mamaia"]
[Date "2019.09.27"]
[Round "7.30"]
[White "Ungureanu, Vlad"]
[Black "Petrisor, Adrian-Marian"]
[Result "1/2-1/2"]
[ECO "E54"]
[WhiteElo "2284"]
[BlackElo "2411"]
[Annotator "NA"]
[PlyCount "20"]
[EventDate "2019.09.21"]
[EventType "team-tourn"]
[EventCountry "ROU"]
[SourceTitle "playchess.com"]
[Source "ChessBase"]
[SourceQuality "1"]
[TimeControl "40/5400+30:1800+30"]

1. d4 {[%emt 0:00:00]} Nf6 {[%emt 0:00:00]} 2. c4 {[%emt 0:00:00]} e6 {[%emt 0:00:00]} 3. Nc3 {[%emt 0:00:29]} Bb4 {[%emt 0:00:13]} 4. e3 {[%emt 0:00:53]} O-O {[%emt 0:01:00]} 5. Bd3 {[%emt 0:01:23]} d5 {[%emt 0:00:25]} 6. Nf3 {[%emt 0:01:26]} dxc4 {[%emt 0:01:10]} 7. Bxc4 {[%emt 0:01:26]} c5 {[%emt 0:01:12]} 8. O-O {[%emt 0:05:02]} cxd4 {[%emt 0:01:36]} 9. exd4 {[%emt 0:03:47]} Nc6 {[%emt 0:00:10]} 10. Bg5 {[%emt 0:05:05]} Be7 {[%emt 0:00:19]} 1/2-1/2

[Event "ROU-chT 1st League 2019"]
[Site "Mamaia"]
[Date "2019.09.28"]
[Round "8.1"]
[White "Kuzubov, Yuriy"]
[Black "Parligras, Mircea-Emilian"]
[Result "1-0"]
[ECO "E10"]
[WhiteElo "2636"]
[BlackElo "2629"]
[Annotator "ChessBase"]
[PlyCount "107"]
[EventDate "2019.09.21"]
[EventType "team-tourn"]
[EventCountry "ROU"]
[SourceTitle "playchess.com"]
[Source "ChessBase"]
[SourceQuality "1"]
[TimeControl "40/5400+30:1800+30"]

1. d4 {[%emt 0:00:00]} Nf6 {[%emt 0:01:11]} 2. c4 {[%emt 0:00:00]} e6 {[%emt 0:00:05]} 3. Nf3 {[%emt 0:00:00]} d5 {[%emt 0:00:22]} 4. g3 {[%emt 0:00:00]} Bb4+ {[%emt 0:00:14]} 5. Bd2 {[%emt 0:00:00]} Bd6 {[%emt 0:00:18]} 6. Nc3 {[%emt 0:00:00]} O-O {[%emt 0:00:26]} 7. Bg5 {[%emt 0:00:47]} Be7 {[%emt 0:00:34]} 8. Bg2 {[%emt 0:01:25]} h6 {[%emt 0:00:26]} 9. Bxf6 {[%emt 0:01:06]} Bxf6 {[%emt 0:00:08]} 10. e4 {[%emt 0:01:49]} dxc4 {[%emt 0:02:30]} 11. e5 {[%emt 0:03:26]} Be7 {[%emt 0:00:06]} 12. Qe2 {[%emt 0:00:40]} Bd7 {[%emt 0:07:23]} 13. Qxc4 {[%emt 0:06:37]} Bc6 {[%emt 0:00:17]} 14. O-O {[%emt 0:00:37]} Nd7 {[%emt 0:00:30]} 15. Rad1 {[%emt 0:05:21]} Nb6 {[%emt 0:00:44]} 16. Qe2 {[%emt 0:00:08]} a5 {[%emt 0:03:15]} 17. Ne1 {[%emt 0:02:35]} Nd5 {[%emt 0:04:28]} 18. Bxd5 {[%emt 0:12:03]} Bxd5 {[%emt 0:00:40]} 19. Nc2 {[%emt 0:00:34]} c6 {[%emt 0:14:17]} 20. Ne3 {[%emt 0:01:12]} a4 {[%emt 0:02:12]} 21. f4 {[%emt 0:01:24]} f5 {[%emt 0:01:09]} 22. g4 {[%emt 0:06:00]} g6 {[%emt 0:03:40]} 23. Ncxd5 {[%emt 0:15:04]} cxd5 {[%emt 0:00:05]} 24. Kh1 {[%emt 0:00:17]} Kh7 {[%emt 0:01:22]} 25. Rg1 {[%emt 0:00:42]} Rg8 {[%emt 0:01:10]} 26. Rg3 {[%emt 0:01:27]} Qe8 {[%emt 0:03:26]} 27. gxf5 {[%emt 0:10:18]} gxf5 {[%emt 0:00:06]} 28. Rdg1 {[%emt 0:00:18]} Qf7 {[%emt 0:09:20]} 29. a3 {[%emt 0:08:37]} Bh4 {[%emt 0:06:11]} 30. Rxg8 {[%emt 0:00:04]} Rxg8 {[%emt 0:00:03]} 31. Rxg8 {[%emt 0:00:15]} Qxg8 {[%emt 0:00:44]} 32. Ng2 {[%emt 0:08:07]} Be7 {[%emt 0:01:05]} 33. Qc2 {[%emt 0:02:31]} Qg4 {[%emt 0:13:09]} 34. Qd3 {[%emt 0:08:07]} Kg7 {[%emt 0:02:49]} 35. Kg1 {[%emt 0:01:17]} Kf7 {[%emt 0:01:27]} 36. Kf1 {[%emt 0:01:11]} b5 {[%emt 0:07:25]} 37. h3 {[%emt 0:00:29]} Qh5 {[%emt 0:00:14]} 38. Kf2 {[%emt 0:01:24]} b4 {[%emt 0:00:40]} 39. axb4 {[%emt 0:00:11]} Bxb4 {[%emt 0:00:04]} 40. Kg3 {[%emt 0:00:00]} Be7 {[%emt 0:00:00]} 41. Kh2 {[%emt 0:01:07]} Bf8 {[%emt 0:02:40]} 42. Qc2 {[%emt 0:08:36]} Qf3 {[%emt 0:06:51]} 43. Qxa4 {[%emt 0:00:46]} Qf2 {[%emt 0:00:13]} 44. b3 {[%emt 0:04:13]} Be7 {[%emt 0:10:17]} 45. Qa1 {[%emt 0:04:24]} Qc2 {[%emt 0:00:05]} 46. Qa8 {[%emt 0:00:52]} Qxb3 {[%emt 0:13:10]} 47. Qh8 {[%emt 0:00:06]} Qd1 {[%emt 0:00:27]} 48. Qxh6 {[%emt 0:00:20]} Qxd4 {[%emt 0:00:30]} 49. h4 {[%emt 0:04:28]} Qd1 {[%emt 0:05:32]} 50. Qh7+ {[%emt 0:00:15]} Ke8 {[%emt 0:00:04]} 51. Qg8+ {[%emt 0:01:49]} Kd7 {[%emt 0:00:05]} 52. Qf7 {[%emt 0:00:08]} Qg4 {[%emt 0:04:21]} 53. h5 {[%emt 0:00:50]} Kd8 {[%emt 0:00:03]} 54. h6 {[%emt 0:00:47]} 1-0

[Event "ROU-chT 1st League 2019"]
[Site "Mamaia"]
[Date "2019.09.28"]
[Round "8.2"]
[White "Deac, Bogdan-Daniel"]
[Black "Baklan, Vladimir"]
[Result "1/2-1/2"]
[ECO "A05"]
[WhiteElo "2613"]
[BlackElo "2604"]
[Annotator "ChessBase"]
[PlyCount "51"]
[EventDate "2019.09.21"]
[EventType "team-tourn"]
[EventCountry "ROU"]
[SourceTitle "playchess.com"]
[Source "ChessBase"]
[SourceQuality "1"]
[TimeControl "40/5400+30:1800+30"]

1. Nf3 {[%emt 0:01:39]} Nf6 {[%emt 0:00:00]} 2. c4 {[%emt 0:00:06]} b6 {[%emt 0:04:00]} 3. g3 {[%emt 0:00:41]} Bb7 {[%emt 0:00:29]} 4. Bg2 {[%emt 0:00:02]} g6 {[%emt 0:02:27]} 5. d4 {[%emt 0:03:49]} Bg7 {[%emt 0:00:03]} 6. O-O {[%emt 0:00:06]} O-O {[%emt 0:00:04]} 7. Qc2 {[%emt 0:00:20]} Be4 {[%emt 0:06:47]} 8. Qa4 {[%emt 0:09:45]} Bb7 {[%emt 0:06:11]} 9. Bg5 {[%emt 0:16:06]} c5 {[%emt 0:05:21]} 10. Nc3 {[%emt 0:01:45]} Ne4 {[%emt 0:02:59]} 11. Nxe4 {[%emt 0:01:50]} Bxe4 {[%emt 0:00:18]} 12. Rad1 {[%emt 0:00:14]} cxd4 {[%emt 0:10:43]} 13. Nxd4 {[%emt 0:00:19]} Bxg2 {[%emt 0:00:03]} 14. Kxg2 {[%emt 0:00:11]} h6 {[%emt 0:00:01]} 15. Be3 {[%emt 0:02:13]} Qc8 {[%emt 0:00:09]} 16. Qb5 {[%emt 0:01:27]} Nc6 {[%emt 0:10:21]} 17. Nxc6 {[%emt 0:01:32]} dxc6 {[%emt 0:00:04]} 18. Qa4 {[%emt 0:00:17]} b5 {[%emt 0:05:34]} 19. cxb5 {[%emt 0:04:09]} cxb5 {[%emt 0:00:14]} 20. Qxb5 {[%emt 0:04:41]} Rb8 {[%emt 0:00:29]} 21. Qa4 {[%emt 0:00:11]} Rxb2 {[%emt 0:01:10]} 22. Qxa7 {[%emt 0:00:07]} Qa8+ {[%emt 0:07:43]} 23. Qxa8 {[%emt 0:00:15]} Rxa8 {[%emt 0:00:04]} 24. Rd7 {[%emt 0:00:19]} Rxe2 {[%emt 0:03:48]} 25. Rxe7 {[%emt 0:00:09]} Bd4 {[%emt 0:05:16]} 26. a4 {[%emt 0:02:03]} 1/2-1/2

[Event "ROU-chT 1st League 2019"]
[Site "Mamaia"]
[Date "2019.09.28"]
[Round "8.3"]
[White "Rogozenco, Dorian"]
[Black "Svetushkin, Dmitry"]
[Result "1/2-1/2"]
[ECO "D11"]
[WhiteElo "2491"]
[BlackElo "2534"]
[Annotator "ChessBase"]
[PlyCount "96"]
[EventDate "2019.09.21"]
[EventType "team-tourn"]
[EventCountry "ROU"]
[SourceTitle "playchess.com"]
[Source "ChessBase"]
[SourceQuality "1"]
[TimeControl "40/5400+30:1800+30"]

1. d4 {[%emt 0:00:00]} d5 {[%emt 0:00:00]} 2. c4 {[%emt 0:00:00]} c6 {[%emt 0:00:00]} 3. Nf3 {[%emt 0:00:00]} Nf6 {[%emt 0:00:03]} 4. Qc2 {[%emt 0:00:15]} dxc4 {[%emt 0:00:53]} 5. Qxc4 {[%emt 0:00:07]} Bf5 {[%emt 0:00:05]} 6. g3 {[%emt 0:00:20]} e6 {[%emt 0:00:31]} 7. Bg2 {[%emt 0:00:07]} Be7 {[%emt 0:00:06]} 8. O-O {[%emt 0:00:16]} O-O {[%emt 0:00:21]} 9. e3 {[%emt 0:00:21]} Nbd7 {[%emt 0:00:21]} 10. Qe2 {[%emt 0:00:20]} Qc7 {[%emt 0:01:30]} 11. Nc3 {[%emt 0:00:23]} e5 {[%emt 0:01:03]} 12. dxe5 {[%emt 0:04:21]} Nxe5 {[%emt 0:00:21]} 13. Nxe5 {[%emt 0:00:13]} Qxe5 {[%emt 0:00:10]} 14. e4 {[%emt 0:00:27]} Bg4 {[%emt 0:05:36]} 15. f3 {[%emt 0:00:37]} Be6 {[%emt 0:00:44]} 16. Be3 {[%emt 0:01:36]} Bc5 {[%emt 0:03:49]} 17. Bxc5 {[%emt 0:01:51]} Qxc5+ {[%emt 0:00:12]} 18. Qf2 {[%emt 0:00:04]} Qa5 {[%emt 0:00:40]} 19. h3 {[%emt 0:07:07]} Nd7 {[%emt 0:11:17]} 20. f4 {[%emt 0:01:56]} f6 {[%emt 0:00:27]} 21. Rfd1 {[%emt 0:05:25]} Rfd8 {[%emt 0:11:28]} 22. Rd6 {[%emt 0:04:01]} Nf8 {[%emt 0:02:45]} 23. Rad1 {[%emt 0:00:32]} Rxd6 {[%emt 0:04:22]} 24. Rxd6 {[%emt 0:00:07]} Qb6 {[%emt 0:00:14]} 25. Qxb6 {[%emt 0:01:40]} axb6 {[%emt 0:00:19]} 26. a3 {[%emt 0:00:11]} Kf7 {[%emt 0:01:08]} 27. Kf2 {[%emt 0:05:11]} Ke7 {[%emt 0:00:29]} 28. Rd4 {[%emt 0:08:15]} b5 {[%emt 0:04:47]} 29. h4 {[%emt 0:19:48]} Nd7 {[%emt 0:00:59]} 30. Bf3 {[%emt 0:00:04]} Nb6 {[%emt 0:03:07]} 31. Be2 {[%emt 0:00:02]} h6 {[%emt 0:21:32]} 32. h5 {[%emt 0:01:32]} Nc4 {[%emt 0:02:25]} 33. Bxc4 {[%emt 0:01:16]} bxc4 {[%emt 0:00:04]} 34. f5 {[%emt 0:04:15]} Bf7 {[%emt 0:00:15]} 35. g4 {[%emt 0:00:03]} b5 {[%emt 0:08:38]} 36. Ke3 {[%emt 0:24:27]} c5 {[%emt 0:07:24]} 37. Rd1 {[%emt 0:08:14]} b4 {[%emt 0:00:56]} 38. axb4 {[%emt 0:00:03]} cxb4 {[%emt 0:00:05]} 39. Nd5+ {[%emt 0:00:03]} Bxd5 {[%emt 0:00:20]} 40. exd5 {[%emt 0:00:00]} c3 {[%emt 0:00:00]} 41. bxc3 {[%emt 0:21:14]} bxc3 {[%emt 0:08:37]} 42. Rc1 {[%emt 0:01:14]} Ra4 {[%emt 0:03:12]} 43. Rxc3 {[%emt 0:00:11]} Rxg4 {[%emt 0:00:05]} 44. Rc6 {[%emt 0:01:43]} Rh4 {[%emt 0:02:27]} 45. Rc7+ {[%emt 0:00:48]} Kd6 {[%emt 0:00:04]} 46. Rxg7 {[%emt 0:00:05]} Rxh5 {[%emt 0:00:33]} 47. Rg6 {[%emt 0:01:23]} Rxf5 {[%emt 0:03:36]} 48. Rxh6 {[%emt 0:00:06]} Kxd5 {Ke4+} 1/2-1/2

[Event "ROU-chT 1st League 2019"]
[Site "Mamaia"]
[Date "2019.09.28"]
[Round "8.4"]
[White "Iordachescu, Viorel"]
[Black "Manolache, Marius"]
[Result "1/2-1/2"]
[ECO "B08"]
[WhiteElo "2602"]
[BlackElo "2548"]
[Annotator "ChessBase"]
[PlyCount "206"]
[EventDate "2019.09.21"]
[EventType "team-tourn"]
[EventCountry "ROU"]
[SourceTitle "playchess.com"]
[Source "ChessBase"]
[SourceQuality "1"]
[TimeControl "40/5400+30:1800+30"]

1. e4 {[%emt 0:00:00]} d6 {[%emt 0:00:24]} 2. d4 {[%emt 0:00:00]} Nf6 {[%emt 0:00:07]} 3. Nc3 {[%emt 0:00:25]} g6 {[%emt 0:00:09]} 4. Nf3 {[%emt 0:00:15]} Bg7 {[%emt 0:00:14]} 5. Be2 {[%emt 0:00:15]} O-O {[%emt 0:00:25]} 6. O-O {[%emt 0:00:05]} a6 {[%emt 0:01:10]} 7. Re1 {[%emt 0:02:14]} Nc6 {[%emt 0:02:10]} 8. d5 {[%emt 0:01:31]} Ne5 {[%emt 0:03:11]} 9. Nxe5 {[%emt 0:05:10]} dxe5 {[%emt 0:00:05]} 10. a4 {[%emt 0:01:49]} e6 {[%emt 0:05:48]} 11. Bc4 {[%emt 0:01:51]} exd5 {[%emt 0:01:08]} 12. Nxd5 {[%emt 0:00:32]} Nxd5 {[%emt 0:03:24]} 13. Bxd5 {[%emt 0:00:31]} Qe7 {[%emt 0:15:52]} 14. Be3 {[%emt 0:07:57]} Rb8 {[%emt 0:01:14]} 15. Qd2 {[%emt 0:07:12]} Rd8 {[%emt 0:13:07]} 16. Qc3 {[%emt 0:02:04]} Bf8 {[%emt 0:06:10]} 17. Rad1 {[%emt 0:14:27]} c6 {[%emt 0:02:15]} 18. Bb3 {[%emt 0:04:07]} Bg4 {[%emt 0:13:28]} 19. f3 {[%emt 0:00:54]} Rxd1 {[%emt 0:04:26]} 20. Rxd1 {[%emt 0:00:13]} Bd7 {[%emt 0:00:11]} 21. Qa5 {[%emt 0:09:47]} Be8 {[%emt 0:00:38]} 22. Bb6 {[%emt 0:05:11]} Rc8 {[%emt 0:00:29]} 23. Qd2 {[%emt 0:04:10]} Qf6 {[%emt 0:01:31]} 24. a5 {[%emt 0:01:57]} Be7 {[%emt 0:00:22]} 25. Bc4 {[%emt 0:01:44]} Kg7 {[%emt 0:00:32]} 26. Qc3 {[%emt 0:04:00]} Kg8 {[%emt 0:00:18]} 27. Rd3 {[%emt 0:05:39]} h5 {[%emt 0:08:58]} 28. Qd2 {[%emt 0:01:10]} Kg7 {[%emt 0:00:10]} 29. g3 {[%emt 0:02:02]} h4 {[%emt 0:00:41]} 30. Kg2 {[%emt 0:00:43]} hxg3 {[%emt 0:01:23]} 31. hxg3 {[%emt 0:00:06]} c5 {[%emt 0:02:24]} 32. Qe3 {[%emt 0:07:06]} Bd6 {[%emt 0:04:57]} 33. Bd5 {[%emt 0:01:51]} c4 {[%emt 0:00:18]} 34. Rd1 {[%emt 0:00:59]} Bc6 {[%emt 0:00:56]} 35. Bxc4 {[%emt 0:02:12]} Ba4 {[%emt 0:00:44]} 36. b3 {[%emt 0:01:34]} Bb5 {[%emt 0:00:04]} 37. Bxb5 {[%emt 0:01:25]} axb5 {[%emt 0:00:05]} 38. c3 {[%emt 0:00:22]} Bf8 {[%emt 0:01:46]} 39. Rd5 {[%emt 0:00:35]} Qe6 {[%emt 0:03:30]} 40. Rxb5 {[%emt 0:00:00]} Bd6 {[%emt 0:00:00]} 41. Rd5 {[%emt 0:20:13]} Rh8 {[%emt 0:00:57]} 42. g4 {[%emt 0:00:11]} Qe7 {[%emt 0:00:11]} 43. Qf2 {[%emt 0:00:44]} Bb8 {[%emt 0:04:12]} 44. b4 {[%emt 0:02:25]} Qe8 {[%emt 0:00:15]} 45. Rd1 {[%emt 0:00:37]} Qc6 {[%emt 0:00:51]} 46. Qe3 {[%emt 0:01:09]} Qa4 {[%emt 0:02:17]} 47. Qd2 {[%emt 0:00:34]} Qc6 {[%emt 0:00:53]} 48. Rh1 {[%emt 0:01:16]} Rxh1 {[%emt 0:00:18]} 49. Kxh1 {[%emt 0:00:04]} Bc7 {[%emt 0:00:24]} 50. Bf2 {[%emt 0:00:46]} b6 {[%emt 0:00:07]} 51. a6 {[%emt 0:03:08]} Qc4 {[%emt 0:00:09]} 52. a7 {[%emt 0:02:32]} Qa6 {[%emt 0:00:22]} 53. Kg2 {[%emt 0:01:35]} Qxa7 {[%emt 0:00:05]} 54. Qd7 {[%emt 0:00:18]} Qb8 {[%emt 0:00:19]} 55. b5 {[%emt 0:00:23]} Bd8 {[%emt 0:02:13]} 56. Qc6 {[%emt 0:00:33]} Bc7 {[%emt 0:00:06]} 57. c4 {[%emt 0:00:29]} Qd8 {[%emt 0:00:26]} 58. Qd5 {[%emt 0:00:09]} Qe8 {[%emt 0:03:29]} 59. Be3 {[%emt 0:00:25]} Kg8 {[%emt 0:01:26]} 60. Bf2 {[%emt 0:01:06]} Kg7 {[%emt 0:00:19]} 61. Bh4 {[%emt 0:01:55]} Qb8 {[%emt 0:03:25]} 62. Qd7 {[%emt 0:01:35]} Bd6 {[%emt 0:01:01]} 63. Qd8 {[%emt 0:01:03]} Qxd8 {[%emt 0:00:32]} 64. Bxd8 {[%emt 0:00:04]} Bc5 {[%emt 0:00:07]} 65. g5 {[%emt 0:01:04]} Kf8 {[%emt 0:00:26]} 66. Bc7 {[%emt 0:02:22]} Bd4 {[%emt 0:00:23]} 67. f4 {[%emt 0:01:02]} exf4 {[%emt 0:00:34]} 68. Kf3 {[%emt 0:00:18]} Ke7 {[%emt 0:00:46]} 69. Bxf4 {[%emt 0:01:44]} Ke6 {[%emt 0:00:06]} 70. Bc7 {[%emt 0:00:29]} Bc5 {[%emt 0:00:53]} 71. Bf4 {[%emt 0:00:17]} Be7 {[%emt 0:00:14]} 72. Be3 {[%emt 0:00:10]} Bd8 {[%emt 0:00:08]} 73. Bd4 {[%emt 0:00:06]} Bc7 {[%emt 0:00:18]} 74. Bf6 {[%emt 0:00:19]} Bd6 {[%emt 0:00:33]} 75. Ke3 {[%emt 0:00:19]} Bc7 {[%emt 0:00:36]} 76. Kd3 {[%emt 0:00:09]} Bd6 {[%emt 0:00:18]} 77. Bd4 {[%emt 0:00:09]} Bc7 {[%emt 0:00:20]} 78. Kc2 {[%emt 0:01:03]} Bd8 {[%emt 0:00:13]} 79. Kd3 {[%emt 0:00:13]} Bc7 {[%emt 0:00:11]} 80. c5 {[%emt 0:00:08]} bxc5 {[%emt 0:00:27]} 81. Bxc5 {[%emt 0:00:02]} f6 {[%emt 0:00:13]} 82. b6 {[%emt 0:02:01]} Bb8 {[%emt 0:00:23]} 83. gxf6 {[%emt 0:01:39]} Kxf6 {[%emt 0:00:01]} 84. Be3 {[%emt 0:00:24]} g5 {[%emt 0:00:24]} 85. Kd4 {[%emt 0:00:14]} g4 {[%emt 0:00:09]} 86. Kd5 {[%emt 0:00:09]} g3 {[%emt 0:00:35]} 87. Bd4+ {[%emt 0:00:22]} Ke7 {[%emt 0:00:31]} 88. e5 {[%emt 0:00:12]} g2 {[%emt 0:00:07]} 89. Bc5+ {[%emt 0:00:09]} Kf7 {[%emt 0:00:42]} 90. b7 {[%emt 0:00:46]} Ke8 {[%emt 0:00:43]} 91. e6 {[%emt 0:00:15]} Kd8 {[%emt 0:00:40]} 92. Ke4 {[%emt 0:01:39]} Ke8 {[%emt 0:00:43]} 93. Kf5 {[%emt 0:00:23]} Kd8 {[%emt 0:00:29]} 94. Kg6 {[%emt 0:00:52]} Ke8 {[%emt 0:00:12]} 95. Kf6 {[%emt 0:00:08]} Bc7 {[%emt 0:00:42]} 96. Ba7 {[%emt 0:00:42]} Kf8 {[%emt 0:02:03]} 97. Kf5 {[%emt 0:00:36]} Ke7 {[%emt 0:00:30]} 98. Bc5+ {[%emt 0:00:11]} Ke8 {[%emt 0:00:06]} 99. Ke4 {[%emt 0:00:38]} Bb8 {[%emt 0:00:07]} 100. Kf3 {[%emt 0:00:46]} g1=Q {[%emt 0:00:15]} 101. Bxg1 {[%emt 0:00:02]} Ke7 {[%emt 0:00:06]} 102. Ke4 {[%emt 0:00:25]} Kxe6 {[%emt 0:00:06]} 103. Bb6 {[%emt 0:00:53]} Kd6 {[%emt 0:00:06]} 1/2-1/2

[Event "ROU-chT 1st League 2019"]
[Site "Mamaia"]
[Date "2019.09.28"]
[Round "8.5"]
[White "Anton, Teodor"]
[Black "Nevednichy, Vladislav"]
[Result "1-0"]
[ECO "D52"]
[WhiteElo "2445"]
[BlackElo "2522"]
[Annotator "ChessBase"]
[PlyCount "129"]
[EventDate "2019.09.21"]
[EventType "team-tourn"]
[EventCountry "ROU"]
[SourceTitle "playchess.com"]
[Source "ChessBase"]
[SourceQuality "1"]
[TimeControl "40/5400+30:1800+30"]

1. d4 {[%emt 0:00:00]} Nf6 {[%emt 0:00:00]} 2. c4 {[%emt 0:00:00]} e6 {[%emt 0:00:33]} 3. Nc3 {[%emt 0:00:00]} d5 {[%emt 0:01:39]} 4. Bg5 {[%emt 0:00:09]} Nbd7 {[%emt 0:05:36]} 5. e3 {[%emt 0:00:43]} c6 {[%emt 0:01:01]} 6. Nf3 {[%emt 0:01:54]} Qa5 {[%emt 0:02:01]} 7. Nd2 {[%emt 0:01:17]} Bb4 {[%emt 0:01:21]} 8. Qc2 {[%emt 0:00:43]} O-O {[%emt 0:01:37]} 9. Be2 {[%emt 0:01:11]} c5 {[%emt 0:05:14]} 10. Nb3 {[%emt 0:06:29]} Bxc3+ {[%emt 0:09:01]} 11. bxc3 {[%emt 0:00:37]} Qa4 {[%emt 0:00:51]} 12. cxd5 {[%emt 0:08:55]} exd5 {[%emt 0:17:38]} 13. Bxf6 {[%emt 0:02:56]} Nxf6 {[%emt 0:00:08]} 14. dxc5 {[%emt 0:00:51]} Be6 {[%emt 0:04:22]} 15. O-O {[%emt 0:09:47]} Rfc8 {[%emt 0:01:36]} 16. Rfd1 {[%emt 0:00:24]} a5 {[%emt 0:10:50]} 17. Qb2 {[%emt 0:06:04]} Qe8 {[%emt 0:02:38]} 18. Rac1 {[%emt 0:13:06]} a4 {[%emt 0:09:08]} 19. Nd4 {[%emt 0:00:41]} Rxc5 {[%emt 0:01:02]} 20. Qxb7 {[%emt 0:00:49]} Bd7 {[%emt 0:07:19]} 21. Qb4 {[%emt 0:02:41]} Rac8 {[%emt 0:02:44]} 22. Rc2 {[%emt 0:03:37]} Qf8 {[%emt 0:08:43]} 23. Rdc1 {[%emt 0:01:44]} Rb8 {[%emt 0:00:15]} 24. Qa3 {[%emt 0:00:27]} h6 {[%emt 0:01:03]} 25. h3 {[%emt 0:05:26]} Rc7 {[%emt 0:02:22]} 26. Qxf8+ {[%emt 0:00:10]} Kxf8 {[%emt 0:00:01]} 27. Bd3 {[%emt 0:00:44]} Ke7 {[%emt 0:02:26]} 28. Kf1 {[%emt 0:00:18]} Ne8 {[%emt 0:00:07]} 29. c4 {[%emt 0:00:32]} dxc4 {[%emt 0:00:16]} 30. Rxc4 {[%emt 0:01:29]} Rxc4 {[%emt 0:00:04]} 31. Rxc4 {[%emt 0:00:11]} Rb2 {[%emt 0:00:20]} 32. Rc2 {[%emt 0:00:34]} Rb1+ {[%emt 0:00:20]} 33. Ke2 {[%emt 0:00:11]} Rg1 {[%emt 0:00:41]} 34. Kf3 {[%emt 0:03:08]} Nd6 {[%emt 0:01:03]} 35. e4 {[%emt 0:04:55]} f6 {[%emt 0:00:03]} 36. h4 {[%emt 0:00:26]} g5 {[%emt 0:00:44]} 37. hxg5 {[%emt 0:00:31]} hxg5 {[%emt 0:00:21]} 38. Ne2 {[%emt 0:03:18]} Ra1 {[%emt 0:00:25]} 39. Ke3 {[%emt 0:00:26]} Nf7 {[%emt 0:02:22]} 40. Nd4 {[%emt 0:00:00]} Ne5 {[%emt 0:00:00]} 41. Be2 {[%emt 0:01:54]} Rg1 {[%emt 0:04:26]} 42. g3 {[%emt 0:00:26]} Kd6 {[%emt 0:04:43]} 43. Nb5+ {[%emt 0:10:52]} Ke7 {[%emt 0:04:39]} 44. Na3 {[%emt 0:04:43]} Be6 {[%emt 0:03:02]} 45. Kd4 {[%emt 0:06:34]} g4 {[%emt 0:06:50]} 46. Nc4 {[%emt 0:03:39]} Nc6+ {[%emt 0:05:16]} 47. Kc5 {[%emt 0:00:56]} Ne5 {[%emt 0:00:21]} 48. Nxe5 {[%emt 0:03:27]} fxe5 {[%emt 0:00:02]} 49. Kb4 {[%emt 0:00:41]} Ra1 {[%emt 0:01:43]} 50. Ka3 {[%emt 0:01:43]} Kd6 {[%emt 0:01:36]} 51. Bb5 {[%emt 0:01:26]} Re1 {[%emt 0:01:03]} 52. Kxa4 {[%emt 0:06:08]} Rxe4+ {[%emt 0:00:08]} 53. Ka5 {[%emt 0:00:03]} Re1 {[%emt 0:00:37]} 54. Kb6 {[%emt 0:00:09]} e4 {[%emt 0:01:17]} 55. a4 {[%emt 0:01:07]} e3 {[%emt 0:00:29]} 56. fxe3 {[%emt 0:00:06]} Rxe3 {[%emt 0:00:03]} 57. Rd2+ {[%emt 0:00:45]} Ke5 {[%emt 0:00:53]} 58. Re2 {[%emt 0:00:12]} Rxe2 {[%emt 0:00:51]} 59. Bxe2 {[%emt 0:00:05]} Ke4 {[%emt 0:00:03]} 60. a5 {[%emt 0:00:36]} Ke3 {[%emt 0:00:02]} 61. Bb5 {[%emt 0:00:17]} Kf2 {[%emt 0:00:15]} 62. a6 {[%emt 0:00:14]} Bd5 {[%emt 0:00:04]} 63. Bc6 {[%emt 0:00:14]} Bxc6 {[%emt 0:00:04]} 64. Kxc6 {[%emt 0:00:04]} Kxg3 {[%emt 0:00:02]} 65. a7 {[%emt 0:00:04]} 1-0

[Event "ROU-chT 1st League 2019"]
[Site "Mamaia"]
[Date "2019.09.28"]
[Round "8.6"]
[White "Costachi, Mihnea"]
[Black "Banzea, Alexandru-Bogdan"]
[Result "1/2-1/2"]
[ECO "D37"]
[WhiteElo "2463"]
[BlackElo "2401"]
[Annotator "ChessBase"]
[PlyCount "60"]
[EventDate "2019.09.21"]
[EventType "team-tourn"]
[EventCountry "ROU"]
[SourceTitle "playchess.com"]
[Source "ChessBase"]
[SourceQuality "1"]
[TimeControl "40/5400+30:1800+30"]

1. Nf3 {[%emt 0:00:00]} Nf6 {[%emt 0:00:00]} 2. d4 {[%emt 0:00:20]} d5 {[%emt 0:00:24]} 3. c4 {[%emt 0:00:24]} e6 {[%emt 0:00:45]} 4. Nc3 {[%emt 0:00:42]} Be7 {[%emt 0:00:24]} 5. Bf4 {[%emt 0:04:37]} O-O {[%emt 0:01:19]} 6. e3 {[%emt 0:00:03]} Nbd7 {[%emt 0:01:58]} 7. c5 {[%emt 0:03:51]} c6 {[%emt 0:05:28]} 8. Bd3 {[%emt 0:00:45]} b6 {[%emt 0:05:46]} 9. b4 {[%emt 0:00:16]} a5 {[%emt 0:05:02]} 10. a3 {[%emt 0:00:15]} Ba6 {[%emt 0:00:36]} 11. O-O {[%emt 0:04:02]} Qc8 {[%emt 0:10:09]} 12. h3 {[%emt 0:02:47]} Qb7 {[%emt 0:02:13]} 13. Qc2 {[%emt 0:05:53]} Bxd3 {[%emt 0:00:24]} 14. Qxd3 {[%emt 0:00:03]} axb4 {[%emt 0:00:12]} 15. axb4 {[%emt 0:00:07]} Rxa1 {[%emt 0:00:07]} 16. Rxa1 {[%emt 0:00:03]} Ra8 {[%emt 0:00:16]} 17. Qb1 {[%emt 0:03:56]} Ra6 {[%emt 0:02:37]} 18. Rxa6 {[%emt 0:06:44]} Qxa6 {[%emt 0:00:10]} 19. b5 {[%emt 0:00:41]} Qb7 {[%emt 0:02:38]} 20. bxc6 {[%emt 0:06:04]} Qxc6 {[%emt 0:00:39]} 21. cxb6 {[%emt 0:00:07]} Qxb6 {[%emt 0:00:53]} 22. Qxb6 {[%emt 0:00:49]} Nxb6 {[%emt 0:00:09]} 23. Ne5 {[%emt 0:00:23]} Kf8 {[%emt 0:00:37]} 24. Kf1 {[%emt 0:00:20]} Ke8 {[%emt 0:00:27]} 25. Ke2 {[%emt 0:00:23]} h6 {[%emt 0:00:22]} 26. g4 {[%emt 0:02:31]} Nfd7 {[%emt 0:00:22]} 27. Nd3 {[%emt 0:00:41]} Nf6 {[%emt 0:00:58]} 28. Ne5 {[%emt 0:00:41]} Nfd7 {[%emt 0:00:44]} 29. Nd3 {[%emt 0:00:06]} Nf6 {[%emt 0:00:19]} 30. Ne5 {[%emt 0:00:04]} Nfd7 {[%emt 0:00:09]} 1/2-1/2

[Event "ROU-chT 1st League 2019"]
[Site "Mamaia"]
[Date "2019.09.28"]
[Round "8.7"]
[White "Macovei, Andrei"]
[Black "Zubov, Alexander"]
[Result "1/2-1/2"]
[ECO "B06"]
[WhiteElo "2426"]
[BlackElo "2612"]
[Annotator "ChessBase"]
[PlyCount "38"]
[EventDate "2019.09.21"]
[EventType "team-tourn"]
[EventCountry "ROU"]
[SourceTitle "playchess.com"]
[Source "ChessBase"]
[SourceQuality "1"]
[TimeControl "40/5400+30:1800+30"]

1. e4 {[%emt 0:01:14]} g6 {[%emt 0:00:00]} 2. d4 {[%emt 0:01:38]} Bg7 {[%emt 0:00:00]} 3. Nf3 {[%emt 0:00:46]} d6 {[%emt 0:00:49]} 4. c3 {[%emt 0:00:23]} Nf6 {[%emt 0:00:58]} 5. Bd3 {[%emt 0:00:06]} O-O {[%emt 0:00:18]} 6. O-O {[%emt 0:00:09]} Nc6 {[%emt 0:00:42]} 7. h3 {[%emt 0:00:24]} e5 {[%emt 0:00:22]} 8. Re1 {[%emt 0:00:14]} h6 {[%emt 0:02:23]} 9. Be3 {[%emt 0:03:00]} exd4 {[%emt 0:12:53]} 10. cxd4 {[%emt 0:00:52]} Nb4 {[%emt 0:00:06]} 11. Nc3 {[%emt 0:00:02]} Nxd3 {[%emt 0:00:07]} 12. Qxd3 {[%emt 0:00:02]} Re8 {[%emt 0:01:18]} 13. d5 {[%emt 0:05:31]} Bd7 {[%emt 0:15:33]} 14. Rad1 {[%emt 0:13:04]} Qe7 {[%emt 0:17:49]} 15. Bd4 {[%emt 0:16:51]} c5 {[%emt 0:03:46]} 16. dxc6 {[%emt 0:15:00]} Bxc6 {[%emt 0:00:12]} 17. Nh2 {[%emt 0:10:56]} a6 {[%emt 0:06:15]} 18. Ng4 {[%emt 0:01:31]} Nxg4 {[%emt 0:00:33]} 19. hxg4 {[%emt 0:00:07]} Be5 {[%emt 0:00:33]} 1/2-1/2